bitfinex-derivatives/quotes_BNBF0:USTF0_20250315
["timestamp","ask_amount","ask_price","bid_price","bid_amount"]
[1742060363570,0.28406424,613.39,612.89,1.663]
[1742060363775,0.32606214,613.38,612.89,1.663]
[1742060364776,2.50997905,613.14,612.89,1.663]
[1742060366482,0.32606214,613.38,612.89,1.663]
[1742060370680,2.50997905,613.48,612.89,1.663]
[1742060370880,2.50997905,613.46,612.89,1.663]
[1742060373986,2.50997905,614.0,612.89,1.663]
[1742060374192,0.3257435,613.98,612.89,1.663]
[1742060374394,0.3257435,613.98,612.86,1.384]
[1742060374588,0.3257435,613.98,612.79,1.558]
[1742060374787,0.28388813,613.97,612.79,1.558]
[1742060375291,2.50997905,614.0,612.79,1.558]
[1742060375292,0.32575942,613.95,612.79,1.558]
[1742060376097,2.50997905,613.89,612.79,1.558]
[1742060376299,0.32580187,613.87,612.79,1.558]
[1742060377999,0.32580187,613.87,612.79,3.312]
[1742060378302,2.50997905,613.73,612.79,3.312]
[1742060378495,0.3258815,613.72,612.79,3.312]
[1742060378694,0.3258815,613.72,612.79,4.681]
[1742060379295,0.3258815,613.72,612.79,6.284]
[1742060380296,2.50997905,613.69,612.79,6.284]
[1742060380602,0.32590275,613.68,612.79,6.284]
[1742060382505,2.50997905,613.58,612.79,6.284]
[1742060383097,2.50997905,613.58,612.79,7.813]
[1742060384302,0.32590275,613.68,612.79,7.813]
[1742060386709,2.50997905,614.31,612.79,7.813]
[1742060386908,2.50997905,614.22,612.79,7.813]
[1742060387113,0.32562683,614.2,612.79,7.813]
[1742060387501,0.28381519,614.19,612.79,7.813]
[1742060387708,0.32564273,614.17,612.79,7.813]
[1742060389509,0.32564273,614.17,612.79,9.955]
[1742060396608,0.28386034,614.16,612.79,9.955]
[1742060396809,0.32565864,614.14,612.79,9.955]
[1742060405520,2.50997905,614.1,612.79,9.955]
[1742060405721,0.32569046,614.08,612.79,9.955]
[1742060408618,0.28384066,614.07,612.79,9.955]
[1742060409221,2.50997905,613.92,612.79,9.955]
[1742060411522,0.32570107,614.06,612.79,9.955]
[1742060411523,2.50997905,613.88,612.79,9.955]
[1742060412428,2.50997905,613.88,612.8,0.32637075]
[1742060413725,0.32570107,614.06,612.8,0.32637075]
[1742060415434,0.32570107,614.06,612.8,3.88037075]
[1742060415829,0.32570107,614.06,612.8,7.17737075]
[1742060416036,0.32570107,614.06,612.8,8.92837075]
[1742060416234,0.32570107,614.06,612.8,11.00337075]
[1742060417738,0.32570107,614.06,612.81,1.04511615]
[1742060417937,0.32570107,614.06,612.82,0.3263601]
[1742060418138,7.53916158,615.15,612.83,0.93419813]
[1742060418443,7.53916158,615.15,612.85,0.32634412]
[1742060418444,0.3251821,615.04,612.85,0.32634412]
[1742060419239,0.3251821,615.04,612.86,1.97869853]
[1742060419433,0.3251821,615.04,612.87,0.32633348]
[1742060419833,0.28358622,615.03,612.88,1.04511615]
[1742060420036,0.32524027,614.93,612.89,0.32632283]
[1742060420438,0.32524027,614.93,612.9,2.42540931]
[1742060420638,0.28359778,614.92,612.91,2.75172149]
[1742060420936,0.32529846,614.82,612.92,5.46623314]
[1742060421136,0.32529846,614.82,612.93,2.75171084]
[1742060421339,0.32529846,614.82,612.94,1.25914594]
[1742060421538,0.32529846,614.82,612.95,1.25914061]
[1742060421741,0.32529846,614.82,612.96,1.25913529]
[1742060421938,0.32529846,614.82,612.97,1.25912997]
[1742060422135,0.32529846,614.82,612.98,1.25912464]
[1742060422335,0.32529846,614.82,612.99,2.30423547]
[1742060422641,0.32529846,614.82,613.0,0.93284973]
[1742060422842,0.32529846,614.82,613.01,1.25910868]
[1742060423048,0.32529846,614.82,613.02,1.37136977]
[1742060423242,0.32529846,614.82,613.03,0.3262483]
[1742060423641,0.28359431,614.81,613.03,0.3262483]
[1742060423837,0.28359431,614.81,613.04,1.04511615]
[1742060423838,0.32531433,614.79,613.04,1.04511615]
[1742060424343,0.32531433,614.79,613.04,1.37135913]
[1742060424747,0.32531433,614.79,613.05,1.04511615]
[1742060425351,0.32531433,614.79,613.06,0.32623234]
[1742060425543,0.32531433,614.79,613.07,0.93251325]
[1742060425742,0.32531433,614.79,613.08,1.25873495]
[1742060425942,0.32531433,614.79,613.09,0.32621637]
[1742060426447,0.32531433,614.79,613.1,1.04277552]
[1742060426649,0.32531433,614.79,613.11,0.32620573]
[1742060426948,0.32531433,614.79,613.12,1.04277552]
[1742060427146,0.32531433,614.79,613.13,0.32619509]
[1742060427342,0.32531433,614.79,613.14,0.93223448]
[1742060427545,0.32531433,614.79,613.15,0.32618445]
[1742060427943,0.32531433,614.79,613.16,1.04277552]
[1742060428148,0.32531433,614.79,613.17,0.32617381]
[1742060430346,2.50997905,614.63,613.17,0.32617381]
[1742060432448,0.32531433,614.79,613.17,0.32617381]
[1742060434144,0.32531433,614.79,613.17,2.53217381]
[1742060434546,0.32531433,614.79,613.18,2.41495522]
[1742060434946,0.32531433,614.79,613.19,0.32616317]
[1742060435144,0.32531433,614.79,613.2,2.41495522]
[1742060435349,0.32531433,614.79,613.21,0.32615254]
[1742060435545,0.32531433,614.79,613.22,0.92882893]
[1742060435747,0.32531433,614.79,613.23,2.74040616]
[1742060435946,0.32531433,614.79,613.24,2.74040084]
[1742060436250,0.32531433,614.79,613.25,5.43939039]
[1742060436447,0.32531433,614.79,613.26,2.7403902]
[1742060436650,0.32531433,614.79,613.27,1.25494956]
[1742060436847,0.32531433,614.79,613.27,3.0251155]
[1742060437051,0.32531433,614.79,613.28,1.25447644]
[1742060437246,0.32531433,614.79,613.29,0.32610999]
[1742060437844,0.28346495,614.78,613.3,1.03807495]
[1742060438050,0.32532491,614.77,613.3,1.36417962]
[1742060438450,0.32532491,614.77,613.31,1.03807495]
[1742060439245,0.32532491,614.77,613.3,0.32610467]
[1742060439852,0.32532491,614.77,613.31,1.03779688]
[1742060440052,0.32532491,614.77,613.3,0.32610467]
[1742060440353,0.32532491,614.77,613.32,1.03728052]
[1742060440748,0.32532491,614.77,613.33,0.32608872]
[1742060440946,0.32532491,614.77,613.33,1.36336924]
[1742060441351,0.32532491,614.77,613.34,0.32608341]
[1742060441548,0.28352269,614.76,613.34,1.36336393]
[1742060442047,0.28352269,614.76,613.34,0.32608341]
[1742060442251,0.3253355,614.75,613.34,0.32608341]
[1742060444951,0.3253355,614.75,613.35,1.361]
[1742060446651,0.3253355,614.75,613.36,1.959]
[1742060446849,0.28350536,614.74,613.36,1.959]
[1742060447049,0.32534608,614.73,613.36,1.959]
[1742060447548,0.28353655,614.72,613.36,1.959]
[1742060447754,0.32535667,614.71,613.37,1.301]
[1742060448753,0.32535667,614.71,613.37,1.62706746]
[1742060450557,0.32535667,614.71,613.38,0.32606214]
[1742060452860,2.50997905,614.57,613.38,0.32606214]
[1742060455563,2.50997905,614.54,613.38,0.32606214]
[1742060457265,2.50997905,614.57,613.38,0.32606214]
[1742060457959,2.50997905,614.57,613.39,0.92771776]
[1742060458164,2.50997905,614.57,613.4,0.32605151]
[1742060458465,2.50997905,614.57,613.41,0.92795436]
[1742060458666,2.50997905,614.57,613.41,1.03770084]
[1742060459260,2.50997905,614.57,613.4,0.32605151]
[1742060459665,2.83540983,614.57,613.4,0.32605151]
[1742060459865,0.32543078,614.57,613.4,0.32605151]
[1742060464468,0.32543078,614.57,613.41,0.92999651]
[1742060464671,2.50997905,614.86,613.43,0.32603557]
[1742060464871,2.50997905,614.86,613.44,2.4163886]
[1742060465170,2.50997905,614.86,613.46,0.32601962]
[1742060465379,2.50997905,614.86,613.47,2.4163886]
[1742060465572,2.50997905,614.86,613.48,2.4163886]
[1742060465774,2.51459126,615.22,613.5,0.32599837]
[1742060465974,0.32509752,615.2,613.51,2.4163886]
[1742060466269,0.32509752,615.2,613.52,5.44372065]
[1742060466475,0.32509752,615.2,613.53,2.74237102]
[1742060466676,0.32509752,615.2,613.54,2.74236571]
[1742060466875,0.32509752,615.2,613.55,1.25596831]
[1742060467067,0.32509752,615.2,613.56,3.95730731]
[1742060467269,0.32509752,615.2,613.57,1.25595768]
[1742060467471,0.32509752,615.2,613.58,1.25595237]
[1742060467668,0.32509752,615.2,613.59,1.25594706]
[1742060467875,0.28333455,615.19,613.6,0.32594524]
[1742060468074,0.32511338,615.17,613.6,1.36492382]
[1742060468675,0.32511338,615.17,613.6,0.32594524]
[1742060469672,0.28337608,615.16,613.6,0.32594524]
[1742060469875,0.32512923,615.14,613.61,1.845]
[1742060471771,0.32512923,615.14,613.62,2.5950825]
[1742060471976,0.32512923,615.14,613.62,3.70893461]
[1742060472177,0.32512923,615.14,613.63,1.04106869]
[1742060472570,0.32512923,615.14,613.64,1.04106869]
[1742060473471,0.32512923,615.14,613.63,1.04106869]
[1742060474679,0.28340609,615.13,613.62,3.70893461]
[1742060475372,0.32514509,615.11,613.62,3.70893461]
[1742060475877,0.32514509,615.11,613.63,1.788]
[1742060477573,0.28343494,615.1,613.63,1.788]
[1742060477776,0.32516095,615.08,613.63,1.788]
[1742060480581,0.28342224,615.07,613.63,1.788]
[1742060480779,0.32517681,615.05,613.63,1.788]
[1742060483574,0.2834257,615.04,613.63,1.788]
[1742060483780,0.32519267,615.02,613.63,1.788]
[1742060484382,2.50997905,614.91,613.63,1.788]
[1742060484579,0.32525613,614.9,613.63,1.788]
[1742060485482,0.32525613,614.9,613.64,1.964]
[1742060486087,2.50997905,614.88,613.65,2.399]
[1742060486288,0.325272,614.87,613.65,2.399]
[1742060487991,2.50997905,614.86,613.65,4.209]
[1742060488194,0.32528258,614.85,613.65,4.209]
[1742060489389,0.32528258,614.85,613.65,5.601]
[1742060489589,0.28344533,614.84,613.65,5.601]
[1742060489787,0.32529317,614.83,613.65,5.601]
[1742060494497,0.32529317,614.83,613.65,5.601]
[1742060497199,2.50997905,614.72,613.65,5.601]
[1742060497596,0.32536196,614.7,613.65,5.601]
[1742060498700,0.28354232,614.69,613.65,5.601]
[1742060499096,0.32537784,614.67,613.65,5.601]
[1742060500598,0.32537784,614.67,613.65,7.187]
[1742060501602,0.28354579,614.66,613.65,7.187]
[1742060501803,0.32539372,614.64,613.65,7.187]
[1742060504100,2.50997905,614.55,613.65,7.187]
[1742060504305,0.32545197,614.53,613.65,7.187]
[1742060505406,0.32545197,614.53,613.65,9.191]
[1742060507503,0.28357467,614.52,613.65,9.191]
[1742060507706,0.32546786,614.5,613.65,9.191]
[1742060510806,0.28354579,614.49,613.65,9.191]
[1742060511009,0.32548375,614.47,613.65,9.191]
[1742060513711,0.28360587,614.46,613.65,9.191]
[1742060513911,0.32549964,614.44,613.65,9.191]
[1742060516507,0.28360934,614.43,613.65,9.191]
[1742060516812,0.32551023,614.42,613.65,9.191]
[1742060522016,0.28359778,614.41,613.65,9.191]
[1742060522212,0.32552083,614.4,613.65,9.191]
[1742060522919,0.28352731,614.39,613.65,9.191]
[1742060523714,0.28352731,614.39,613.65,10.733]
[1742060523914,0.32553143,614.38,613.65,10.733]
[1742060528719,0.28362667,614.37,613.65,10.733]
[1742060529321,0.32554202,614.36,613.65,10.733]
[1742060531622,0.28362898,614.35,613.65,10.733]
[1742060532121,2.50997905,613.98,613.65,10.733]
[1742060532515,2.50997905,613.98,613.65,3.546]
[1742060534424,2.50997905,613.94,613.65,3.546]
[1742060536025,2.50997905,613.96,613.65,3.546]
[1742060537625,0.32555262,614.34,613.65,3.546]
[1742060539426,2.50997905,614.09,613.65,3.546]
[1742060542222,0.32555262,614.34,613.65,3.546]
[1742060552429,0.32555262,614.34,613.65,4.953]
[1742060557826,0.32555262,614.34,613.65,7.134]
[1742060558533,2.83553167,614.34,613.65,7.134]
[1742060559933,2.50997905,614.34,613.65,7.134]
[1742060560325,2.50997905,614.34,613.65,8.879]
[1742060560931,2.50997905,614.4,613.65,8.879]
[1742060563438,2.50997905,614.86,613.65,8.879]
[1742060563638,0.32528787,614.84,613.65,8.879]
[1742060564533,0.28349266,614.83,613.65,8.879]
[1742060565939,2.50997905,614.59,613.65,8.879]
[1742060567247,2.50997905,614.59,613.65,10.663]
[1742060567442,2.50997905,614.54,613.65,10.663]
[1742060569442,2.50997905,614.49,613.65,10.663]
[1742060570941,2.50997905,614.41,613.65,10.663]
[1742060573446,2.50997905,614.52,613.65,10.663]
[1742060576646,2.50997905,614.61,613.65,10.663]
[1742060578352,2.50997905,614.82,613.65,10.663]
[1742060578952,0.28349151,614.81,613.65,10.663]
[1742060579355,2.50997905,614.82,613.65,10.663]
[1742060579557,0.28350305,614.8,613.65,10.663]
[1742060582458,2.50997905,614.84,613.65,10.663]
[1742060582659,0.28350652,614.79,613.65,10.663]
[1742060585355,2.50997905,614.85,613.65,10.663]
[1742060585558,2.51459126,615.18,613.65,10.663]
[1742060585559,2.50997905,614.54,613.65,10.663]
[1742060587655,2.50997905,614.52,613.65,10.663]
[1742060589362,2.50997905,614.64,613.65,10.663]
[1742060591058,0.28351922,614.63,613.65,10.663]
[1742060591262,0.60891824,614.63,613.65,10.663]
[1742060591666,2.50997905,614.6,613.65,10.663]
[1742060592362,0.32542019,614.59,613.65,10.663]
[1742060594063,2.50997905,614.39,613.65,10.663]
[1742060595765,2.50997905,614.37,613.65,10.663]
[1742060597567,2.83539924,614.59,613.65,10.663]
[1742060599470,0.32542019,614.59,613.65,10.663]
[1742060600566,0.28352962,614.58,613.65,10.663]
[1742060600868,0.60895511,614.58,613.65,10.663]
[1742060603968,0.32543078,614.57,613.65,10.663]
[1742060605174,2.50997905,614.24,613.65,10.663]
[1742060605675,2.50997905,614.24,612.91,0.28357005]
[1742060605870,2.50997905,614.24,612.92,2.76830444]
[1742060606068,2.50997905,614.24,612.93,2.76829912]
[1742060606269,2.50997905,614.24,612.94,2.7682938]
[1742060606475,2.50997905,614.24,612.95,5.49995877]
[1742060606671,2.50997905,614.24,612.96,2.76828315]
[1742060606876,2.50997905,614.24,612.97,2.76827783]
[1742060607074,2.50997905,614.24,612.98,2.7682725]
[1742060607275,2.50997905,614.21,612.99,1.26549943]
[1742060607476,2.50997905,614.21,613.0,0.93922984]
[1742060607670,2.50997905,614.21,612.99,0.32626959]
[1742060607874,2.50997905,614.21,613.01,2.7316703]
[1742060608474,2.50997905,614.21,613.02,3.047]
[1742060609075,2.50997905,614.21,613.02,4.58]
[1742060609269,0.28372726,614.26,613.02,7.848]
[1742060609470,0.32559502,614.26,613.02,7.848]
[1742060609675,0.32559502,614.26,613.02,9.46]
[1742060615481,0.32559502,614.26,613.03,1.04937519]
[1742060615880,0.32559502,614.26,613.04,0.93823678]
[1742060616083,0.32559502,614.26,613.05,0.93823678]
[1742060616277,0.32559502,614.26,613.06,0.93823678]
[1742060616874,0.32559502,614.26,613.07,1.04937519]
[1742060617575,0.32559502,614.26,613.08,1.04937519]
[1742060617776,0.32559502,614.26,613.09,0.93782523]
[1742060617977,0.32559502,614.26,613.23,0.95532213]
[1742060618281,0.32559502,614.26,613.24,2.43799447]
[1742060618481,2.50997905,614.42,613.26,0.32612594]
[1742060618681,2.50997905,614.42,613.27,3.3933166]
[1742060618881,2.50997905,614.42,613.33,0.95532213]
[1742060619076,2.50997905,614.6,613.35,1.28140022]
[1742060619281,2.50997905,614.6,613.44,0.95532213]
[1742060619479,2.50997905,614.6,613.52,0.95532213]
[1742060619680,2.50997905,614.6,613.54,0.32597711]
[1742060619977,2.50997905,614.6,613.55,2.43799447]
[1742060620181,2.50997905,614.6,613.57,0.32596117]
[1742060620376,2.50997905,614.6,613.58,2.43799447]
[1742060620580,2.50997905,614.6,613.6,0.32594524]
[1742060620783,2.50997905,614.6,613.61,2.43799447]
[1742060621086,2.50997905,614.6,613.63,0.3259293]
[1742060621281,2.50997905,614.6,613.64,2.43799447]
[1742060621482,3.0200572,621.26,613.63,0.3259293]
[1742060621483,2.50997905,615.69,613.65,2.76391315]
[1742060621675,0.32489156,615.59,613.66,2.76390784]
[1742060621875,0.32489156,615.59,613.67,2.76390253]
[1742060622079,0.32489156,615.59,613.68,2.76389722]
[1742060622382,0.32489156,615.59,613.69,0.32589744]
[1742060622584,0.32489156,615.59,613.7,2.42098543]
[1742060622877,0.32489156,615.59,613.71,0.32588681]
[1742060623383,0.32489156,615.59,613.72,2.72757748]
[1742060623585,0.32489156,615.59,613.74,0.32587088]
[1742060623982,2.50997905,615.56,613.74,0.32587088]
[1742060624178,0.32491795,615.54,613.74,0.32587088]
[1742060624685,0.28332763,615.53,613.74,0.32587088]
[1742060624885,0.32493379,615.51,613.74,0.32587088]
[1742060626988,0.32493379,615.51,613.75,1.861]
[1742060627283,0.32493379,615.51,613.76,0.32586027]
[1742060628087,0.32493379,615.51,613.77,1.363]
[1742060628289,0.32493379,615.51,613.78,0.32584965]
[1742060630694,0.28326191,615.5,613.78,0.32584965]
[1742060630894,0.32494963,615.48,613.78,0.32584965]
[1742060631489,0.32494963,615.48,613.78,2.24384965]
[1742060632291,0.32494963,615.48,613.79,2.40738702]
[1742060632497,0.32494963,615.48,613.8,2.73322605]
[1742060632696,0.32494963,615.48,613.81,2.73322074]
[1742060632897,0.32494963,615.48,613.82,2.73321543]
[1742060633097,0.32494963,615.48,613.83,2.73321013]
[1742060633295,0.32494963,615.48,613.84,2.73320482]
[1742060633490,0.32494963,615.48,613.86,0.32580718]
[1742060633794,0.32494963,615.48,613.87,2.40738702]
[1742060633992,0.32494963,615.48,613.89,0.32579126]
[1742060634193,0.32494963,615.48,613.9,2.40248901]
[1742060634401,0.32494963,615.48,613.92,0.32577534]
[1742060634596,0.32494963,615.48,613.93,2.40248901]
[1742060634792,0.32494963,615.48,613.95,0.32575942]
[1742060635093,0.32494963,615.48,613.96,2.40248901]
[1742060635295,0.32494963,615.48,613.98,0.3257435]
[1742060635501,0.32494963,615.48,613.99,2.40248901]
[1742060635701,0.32494963,615.48,614.0,1.24976712]
[1742060635900,0.32494963,615.48,614.01,1.24887985]
[1742060636199,0.32494963,615.48,614.02,2.28351484]
[1742060636394,0.32494963,615.48,614.03,0.32571698]
[1742060636899,0.32494963,615.48,614.04,1.0346403]
[1742060637299,0.32494963,615.48,614.03,0.32571698]
[1742060637899,2.50997905,616.43,614.04,2.3963023]
[1742060638100,0.32450148,616.33,614.17,0.93735152]
[1742060638298,0.32450148,616.33,614.19,0.32563213]
[1742060638498,0.32450148,616.33,614.2,2.39423822]
[1742060638696,0.32450148,616.33,614.21,2.71985975]
[1742060638894,0.32450148,616.33,614.22,1.24647707]
[1742060639097,0.28301311,616.32,614.23,1.24647177]
[1742060639297,0.32455941,616.22,614.24,1.24646647]
[1742060639500,0.32455941,616.22,614.25,2.27428215]
[1742060639799,0.32455941,616.22,614.26,0.32559502]
[1742060640901,0.28297284,616.21,614.27,0.91884037]
[1742060641201,0.32457521,616.19,614.28,0.32558442]
[1742060641994,0.32457521,616.19,614.29,0.91808089]
[1742060642200,0.32457521,616.19,614.3,1.24365471]
[1742060642401,0.32457521,616.19,614.31,0.32556852]
[1742060643293,0.32457521,616.19,614.31,1.75356852]
[1742060648601,0.32457521,616.19,614.31,3.78056852]
[1742060650910,0.32457521,616.19,614.32,0.91271495]
[1742060651106,0.32457521,616.19,614.34,0.32555262]
[1742060651307,0.32457521,616.19,614.35,1.93205135]
[1742060651508,0.32457521,616.19,614.37,0.32553672]
[1742060651707,0.28295328,616.18,614.38,0.29888855]
[1742060651911,0.28295328,616.18,614.33,1.94]
[1742060651912,0.32459101,616.16,614.4,0.32552083]
[1742060652508,0.32459101,616.16,614.41,0.29887282]
[1742060652712,0.32459101,616.16,614.43,0.32550493]
[1742060652910,0.32459101,616.16,614.44,0.29887282]
[1742060653106,0.32459101,616.16,614.46,0.32548904]
[1742060653512,0.32459101,616.16,614.47,1.92826337]
[1742060653713,0.32459101,616.16,614.49,0.32547315]
[1742060656615,0.32459101,616.16,614.5,1.581]
[1742060656815,0.32459101,616.16,614.51,0.32546256]
[1742060660015,0.32459101,616.16,614.5,1.581]
[1742060662215,2.50997905,615.81,614.5,1.581]
[1742060662520,0.32478077,615.8,614.5,1.581]
[1742060662919,0.60785028,615.8,614.5,1.581]
[1742060663519,0.32478077,615.8,614.5,1.581]
[1742060663715,0.28306606,615.79,614.5,1.581]
[1742060664119,0.32479659,615.77,614.5,1.581]
[1742060665122,0.32479659,615.77,614.51,0.32546256]
[1742060666117,0.32479659,615.77,614.52,1.606]
[1742060666324,0.32479659,615.77,614.53,0.32545197]
[1742060668116,2.50997905,617.04,614.53,0.32545197]
[1742060668317,2.50997905,616.19,614.53,0.32545197]
[1742060668524,0.32458047,616.18,614.53,0.32545197]
[1742060669725,0.28292798,616.17,614.53,0.32545197]
[1742060669922,0.32459628,616.15,614.53,0.32545197]
[1742060671225,0.32459628,616.15,614.53,1.55345197]
[1742060671424,2.50997905,615.88,614.53,1.55345197]
[1742060672426,2.50997905,615.88,614.53,2.89645197]
[1742060672621,2.50997905,615.88,614.53,4.12645197]
[1742060673226,2.50997905,615.81,614.53,4.12645197]
[1742060673521,2.50997905,615.81,614.54,1.94015772]
[1742060673721,2.50997905,615.81,614.55,1.24134565]
[1742060673924,2.50997905,615.81,614.56,0.32543608]
[1742060674928,2.50997905,615.81,614.57,1.02658343]
[1742060675129,0.32459628,616.15,614.58,0.32542549]
[1742060675628,0.28293028,616.14,614.58,0.32542549]
[1742060675828,0.32460681,616.13,614.58,0.32542549]
[1742060679227,0.32460681,616.13,614.59,1.385]
[1742060682932,0.32463316,616.08,614.6,0.3254149]
[1742060684731,0.28294868,616.07,614.6,0.3254149]
[1742060684933,2.50997905,615.85,614.6,0.3254149]
[1742060687730,2.50997905,615.81,614.6,0.3254149]
[1742060689638,0.3246437,616.06,614.6,0.3254149]
[1742060689938,0.3246437,616.06,614.61,1.33]
[1742060690138,0.3246437,616.06,614.61,2.69262925]
[1742060690533,0.3246437,616.06,614.62,1.03721965]
[1742060691638,0.3246437,616.06,614.61,1.6554096]
[1742060691832,0.3246437,616.06,614.62,0.92912548]
[1742060692033,0.3246437,616.06,614.61,1.6554096]
[1742060692238,0.3246437,616.06,614.62,0.92906355]
[1742060692434,0.3246437,616.06,614.61,1.6554096]
[1742060692638,0.3246437,616.06,614.62,0.92996053]
[1742060692940,0.28292223,616.05,614.62,1.03965384]
[1742060693240,0.32465424,616.04,614.62,1.03965384]
[1742060693441,0.32465424,616.04,614.63,1.03965384]
[1742060693837,0.32465424,616.04,614.64,1.25562401]
[1742060694041,0.32465424,616.04,614.64,0.32539372]
[1742060695944,0.28292338,616.03,614.65,2.036]
[1742060696142,0.32466478,616.02,614.65,2.036]
[1742060696545,2.50997905,615.85,614.65,2.036]
[1742060697642,2.50997905,615.85,614.65,3.615]
[1742060698439,2.50997905,615.77,614.65,3.615]
[1742060699046,2.50997905,615.77,614.65,5.818]
[1742060699943,2.50997905,615.61,614.65,5.818]
[1742060700646,2.50997905,615.61,614.66,2.74380249]
[1742060700848,2.50997905,615.61,614.67,2.7437972]
[1742060701046,2.50997905,615.61,614.68,2.74379191]
[1742060701246,2.50997905,615.61,614.69,1.25602542]
[1742060701446,2.50997905,615.61,614.7,3.95848809]
[1742060701646,2.50997905,615.61,614.71,1.25601484]
[1742060701948,2.50997905,615.61,614.72,0.93065817]
[1742060702248,2.50997905,615.61,614.73,2.74327896]
[1742060702442,2.50997905,615.61,614.74,2.74349163]
[1742060702644,2.50997905,615.61,614.75,0.93065817]
[1742060702948,2.50997905,615.95,614.76,1.25598838]
[1742060703241,2.50997905,615.95,614.77,1.25598308]
[1742060703447,2.50997905,615.95,614.78,1.25597779]
[1742060703643,2.50997905,615.95,614.79,1.2559725]
[1742060703847,2.50997905,615.95,614.8,1.25596721]
[1742060704147,2.50997905,615.95,614.81,1.25596192]
[1742060704342,2.50997905,615.95,614.82,2.29536738]
[1742060704545,2.50997905,615.95,614.83,0.32529317]
[1742060704745,2.50997905,615.95,614.84,1.03941075]
[1742060704948,0.32466478,616.02,614.85,2.41810697]
[1742060705247,0.32466478,616.02,614.86,2.41810697]
[1742060705447,0.32466478,616.02,614.87,2.41810697]
[1742060705648,0.32466478,616.02,614.86,2.70242236]
[1742060705649,0.32466478,616.02,614.88,2.41810697]
[1742060705847,0.32466478,616.02,614.89,0.93004114]
[1742060706040,0.32466478,616.02,614.9,0.93004114]
[1742060706246,0.32466478,616.02,614.91,2.41737508]
[1742060706544,0.32466478,616.02,614.92,5.11976341]
[1742060706746,0.32466478,616.02,614.93,2.41734105]
[1742060706947,0.32466478,616.02,614.92,2.70242236]
[1742060707350,0.32466478,616.02,614.93,2.41686775]
[1742060707552,0.32466478,616.02,614.92,2.70242236]
[1742060707553,2.50997905,616.44,614.94,5.11858359]
[1742060707746,0.32444884,616.43,614.95,2.41616123]
[1742060707950,0.32444884,616.43,614.96,2.74138563]
[1742060708152,0.32444884,616.43,615.36,0.94602848]
[1742060708452,2.50997905,616.44,615.56,0.94602848]
[1742060708654,2.50997905,616.44,615.57,2.41532956]
[1742060708853,2.50997905,616.44,615.62,0.94602848]
[1742060709054,2.50997905,616.44,615.65,0.94602848]
[1742060709250,2.50997905,616.44,615.69,0.94602848]
[1742060709447,2.50997905,616.44,615.7,2.41532956]
[1742060709655,2.50997905,616.44,615.71,2.41532956]
[1742060709846,2.50997905,616.44,615.72,2.41532956]
[1742060710051,2.50997905,616.44,615.73,2.74014725]
[1742060710349,2.50997905,616.44,615.82,0.94602848]
[1742060710547,2.50997905,616.44,615.88,0.94602848]
[1742060710748,2.50997905,616.44,615.9,0.94602848]
[1742060710946,2.50997905,616.44,615.91,2.74005232]
[1742060711148,2.50997905,616.44,615.92,2.74004705]
[1742060711348,2.50997905,616.44,615.93,2.74004178]
[1742060711549,2.50997905,616.44,615.94,2.41532956]
[1742060711855,2.50997905,617.69,615.95,2.74003124]
[1742060712053,2.50997905,617.69,615.96,2.74002596]
[1742060712054,0.32379749,617.67,615.96,2.74002596]
[1742060712249,0.32379749,617.67,615.95,2.70242236]
[1742060712250,0.32379749,617.67,615.97,2.74002069]
[1742060712449,0.32379749,617.67,615.95,2.70242236]
[1742060712450,0.32379749,617.67,615.99,0.32468059]
[1742060712648,0.32379749,617.67,616.0,2.41532956]
[1742060712849,0.32379749,617.67,616.01,2.73999961]
[1742060713053,0.32379749,617.67,616.02,0.32466478]
[1742060713450,0.32379749,617.67,616.02,2.39866478]
[1742060713856,0.28226134,617.66,616.02,2.39866478]
[1742060714056,0.32381322,617.64,616.02,2.39866478]
[1742060714457,0.32381322,617.64,616.03,0.32465951]
[1742060716960,0.2821126,617.63,616.03,0.32465951]
[1742060717258,0.32382371,617.62,616.03,0.32465951]
[1742060722762,0.32382371,617.62,616.03,2.18765951]
[1742060723365,0.32382371,617.62,616.03,4.01565951]
[1742060724965,0.32382371,617.62,616.03,5.30265951]
[1742060728661,0.32382371,617.62,616.03,6.54965951]
[1742060734366,0.32382371,617.62,616.03,7.83765951]
[1742060735973,0.32382371,617.62,616.04,0.29806507]
[1742060736170,0.32382371,617.62,616.06,0.3246437]
[1742060737175,0.32382371,617.62,616.06,2.0806437]
[1742060739779,0.32382371,617.62,616.06,3.4936437]
[1742060740879,0.28215606,617.61,616.06,5.4286437]
[1742060741377,0.32383419,617.6,616.06,5.4286437]
[1742060741771,0.60609438,617.6,616.06,5.4286437]
[1742060745174,2.50997905,617.44,616.06,7.3876437]